bitfinex-derivatives/quotes_SOLF0:USTF0_20260127
["timestamp","ask_amount","ask_price","bid_price","bid_amount"]
[1769475631911,3.29980336,124.0,123.94,13.17094418]
[1769475637016,9.64888296,124.01,123.95,3.51796122]
[1769475637221,12.94868632,124.01,123.95,3.51796122]
[1769475637624,10.56480336,124.01,123.95,5.90184418]
[1769475637925,3.29980336,124.0,123.95,5.90184418]
[1769475639128,3.29980336,124.0,123.95,13.17034418]
[1769475641630,3.29980336,124.0,123.95,10.78646122]
[1769475643317,3.29980336,124.0,123.96,3.51796122]
[1769475643831,12.94818632,124.02,123.96,3.51796122]
[1769475644826,3.29980336,124.01,123.96,3.51796122]
[1769475647830,5.68368632,124.01,123.96,3.51796122]
[1769475653733,5.68675241,124.01,123.96,3.51796122]
[1769475654133,3.48465341,124.0,123.94,18.53697993]
[1769475654433,5.87160246,123.98,123.92,18.53697993]
[1769475654634,2.38694905,123.97,123.92,3.43481891]
[1769475655133,5.87160246,123.98,123.92,3.43481891]
[1769475660742,3.48465341,123.96,123.92,3.43481891]
[1769475661238,3.48465341,123.96,123.9,5.82176796]
[1769475661537,5.87160246,123.96,123.9,5.82176796]
[1769475661740,5.87160246,123.96,123.9,3.43481891]
[1769475664841,5.87160246,123.95,123.9,3.43481891]
[1769475665041,3.48465341,123.94,123.89,321.98]
[1769475665345,5.87160246,123.94,123.89,321.98]
[1769475665646,5.87160246,123.94,123.89,325.41481891]
[1769475665844,3.48465341,123.93,123.87,3.43481891]
[1769475666049,5.87160246,123.93,123.87,3.43481891]
[1769475669252,3.48465341,123.93,123.88,3.43481891]
[1769475670552,3.48465341,123.92,123.88,3.43481891]
[1769475671952,13.14090246,123.94,123.88,3.43481891]
[1769475672851,3.48465341,123.93,123.88,3.43481891]
[1769475673953,5.87160246,123.93,123.88,3.43481891]
[1769475674255,3.48465341,123.93,123.88,3.43481891]
[1769475675547,5.87160246,123.93,123.88,3.43481891]
[1769475676457,5.87160246,123.92,123.86,3.43481891]
[1769475676758,3.48465341,123.92,123.88,3.43481891]
[1769475680256,3.48465341,123.92,123.86,10.81743142]
[1769475680456,3.48465341,123.92,123.87,2.38694905]
[1769475680655,3.48465341,123.92,123.86,5.93058047]
[1769475684353,3.45486125,123.9,123.84,5.93058047]
[1769475684553,3.45486125,123.9,123.84,3.54363142]
[1769475684755,3.45486125,123.9,123.84,5.93058047]
[1769475684959,3.45486125,123.9,123.84,3.54363142]
[1769475685161,3.45486125,123.9,123.85,5.93058047]
[1769475691164,3.45486125,123.9,123.85,3.54363142]
[1769475694462,3.45486125,123.85,123.8,3.54363142]
[1769475694660,3.45486125,123.88,123.82,3.54363142]
[1769475694963,3.45486125,123.88,123.82,5.93058047]
[1769475695964,3.45486125,123.88,123.83,3.54363142]
[1769475696764,3.45486125,123.88,123.83,5.93058047]
[1769475697859,3.45486125,123.88,123.83,3.54363142]
[1769475698259,3.45486125,123.85,123.79,5.93058047]
[1769475698559,5.8418103,123.85,123.79,3.54363142]
[1769475699359,3.45486125,123.84,123.79,3.54363142]
[1769475699666,5.8418103,123.84,123.79,3.54363142]
[1769475700871,13.1172103,123.84,123.79,3.54363142]
[1769475701568,13.1176103,123.83,123.77,3.54363142]
[1769475702866,10.73066125,123.83,123.77,3.54363142]
[1769475703364,3.45486125,123.83,123.77,3.54363142]
[1769475704168,3.45486125,123.83,123.77,5.93058047]
[1769475704862,3.45486125,123.83,123.78,3.54363142]
[1769475710869,3.45486125,123.83,123.78,5.93058047]
[1769475713669,3.45486125,123.83,123.78,3.54363142]
[1769475719175,5.84844706,123.83,123.78,3.54363142]
[1769475720274,3.45486125,123.83,123.78,3.54363142]
[1769475726878,5.84844706,123.83,123.78,3.54363142]
[1769475727178,2.39358581,123.82,123.78,3.54363142]
[1769475730284,5.6263698,123.82,123.78,3.54363142]
[1769475732877,3.23278399,123.82,123.78,3.54363142]
[1769475737486,3.23278399,123.81,123.76,3.40074888]
[1769475738584,5.6263698,123.81,123.76,3.40074888]
[1769475738987,3.23278399,123.81,123.76,3.40074888]
[1769475739288,5.6263698,123.81,123.76,3.40074888]
[1769475741889,3.27086262,123.8,123.76,3.40074888]
[1769475743594,5.66444843,123.8,123.74,271.15517819]
[1769475744098,2.39358581,123.79,123.74,271.15517819]
[1769475744498,5.66444843,123.79,123.74,271.15517819]
[1769475744794,5.66444843,123.79,123.74,3.29517819]
[1769475748906,3.27086262,123.78,123.73,3.29517819]
[1769475750003,5.66444843,123.8,123.74,3.29517819]
[1769475750202,3.27086262,123.8,123.74,5.688764]
[1769475750504,3.27086262,123.8,123.75,3.29517819]
[1769475753913,5.66444843,123.79,123.73,10.57647819]
[1769475754213,3.27086262,123.78,123.73,10.57647819]
[1769475755215,3.27086262,123.77,123.71,325.77517819]
[1769475755712,3.27086262,123.77,123.72,3.29517819]
[1769475756512,5.66444843,123.77,123.72,3.29517819]
[1769475758212,12.94364843,123.77,123.72,3.29517819]
[1769475762721,10.55006262,123.77,123.72,3.29517819]
[1769475766717,3.27086262,123.76,123.72,3.29517819]
[1769475766918,5.66444843,123.75,123.7,23.81709562]
[1769475767115,3.27086262,123.75,123.7,23.81709562]
[1769475767820,3.27086262,123.75,123.7,26.21068143]
[1769475768622,3.27086262,123.77,123.71,5.688764]
[1769475769417,3.27078998,123.76,123.71,5.688764]
[1769475771316,3.27078998,123.76,123.7,20.52191743]
[1769475771317,3.27078998,123.75,123.7,26.40899203]
[1769475775529,3.27078998,123.75,123.7,26.41188835]
[1769475776030,12.94647211,123.77,123.71,3.49348879]
[1769475776225,10.54998998,123.77,123.71,5.88997092]
[1769475777822,10.54998998,123.77,123.72,3.49348879]
[1769475778631,10.54998998,123.77,123.72,5.88997092]
[1769475779624,12.94577211,123.79,123.73,3.49348879]
[1769475779832,10.54928998,123.79,123.73,5.88997092]
[1769475780125,3.27078998,123.79,123.73,5.88997092]
[1769475781933,7.2786,123.78,123.73,5.88997092]
[1769475782230,3.27078998,123.79,123.73,5.88997092]
[1769475783635,3.27078998,123.76,123.71,3.49348879]
[1769475784632,5.66727211,123.76,123.71,3.49348879]
[1769475785131,12.94707211,123.76,123.71,3.49348879]
[1769475786329,3.27078998,123.75,123.7,20.52191743]
[1769475787130,5.66727211,123.75,123.7,20.52191743]
[1769475788230,3.27078998,123.74,123.7,20.52191743]
[1769475788932,10.55168998,123.74,123.7,20.52191743]
[1769475793135,3.27078998,123.73,123.7,20.52191743]
[1769475796138,7.2809,123.74,123.7,20.52191743]
[1769475803836,7.2809,123.74,123.7,26.39400751]
[1769475804144,3.27078998,123.75,123.7,26.39400751]
[1769475804932,10.55108998,123.75,123.71,3.47560795]
[1769475807040,7.2797,123.77,123.72,5.87209008]
[1769475807239,3.29208944,123.81,123.76,5.87209008]
[1769475807444,3.29208944,123.82,123.77,5.87209008]
[1769475807641,3.29208944,123.82,123.71,128.38636102]
[1769475807642,3.29208944,123.85,123.79,5.87209008]
[1769475809044,7.2752,123.84,123.79,5.87209008]
[1769475811844,7.2752,123.84,123.79,3.47560795]
[1769475812046,10.56728944,123.84,123.79,3.47560795]
[1769475814648,5.68857157,123.83,123.77,3.47560795]
[1769475815642,2.39648213,123.82,123.77,3.47560795]
[1769475816148,9.67298213,123.82,123.77,3.47560795]
[1769475818852,7.2765,123.82,123.77,3.47560795]
[1769475822353,10.56858944,123.82,123.77,3.47560795]
[1769475822754,12.96507157,123.82,123.77,3.47560795]
[1769475824252,2.39648213,123.79,123.75,3.47560795]
[1769475825658,5.68857157,123.8,123.75,3.47560795]
[1769475825959,2.39648213,123.79,123.75,3.47560795]
[1769475827558,10.56958944,123.8,123.75,3.47560795]
[1769475827760,12.96607157,123.8,123.75,3.47560795]
[1769475828658,2.39648213,123.79,123.75,3.47560795]
[1769475830458,12.96607157,123.8,123.75,3.47560795]
[1769475831861,2.39648213,123.81,123.75,3.47560795]
[1769475832767,12.92242371,123.82,123.76,3.22049698]
[1769475834971,2.39648213,123.81,123.76,3.22049698]
[1769475835571,2.39449207,123.81,123.76,3.22049698]
[1769475840973,12.92063365,123.81,123.76,3.22049698]
[1769475841975,2.39449207,123.82,123.76,3.22049698]
[1769475842372,5.64383365,123.82,123.76,3.22049698]
[1769475843073,3.24934158,123.82,123.76,3.22049698]
[1769475847778,9.67059207,123.83,123.77,3.22049698]
[1769475847978,2.39449207,123.83,123.77,3.22049698]
[1769475848569,5.64383365,123.84,123.78,3.22049698]
[1769475848976,7.2749,123.85,123.79,3.22049698]
[1769475849376,7.2749,123.85,123.8,3.22049698]
[1769475849674,10.52424158,123.85,123.8,3.22049698]
[1769475849982,12.91873365,123.85,123.8,3.22049698]
[1769475853475,5.64383365,123.85,123.8,3.22049698]
[1769475856085,3.24934158,123.84,123.8,3.22049698]
[1769475856385,3.24934158,123.84,123.79,3.22049698]
[1769475857186,5.64383365,123.84,123.79,3.22049698]
[1769475860788,5.85892294,123.83,123.77,3.43525851]
[1769475861886,13.13462294,123.83,123.77,3.43525851]
[1769475865395,3.46443087,123.83,123.78,3.43525851]
[1769475870907,13.13372294,123.85,123.78,3.43525851]
[1769475871104,3.46443087,123.84,123.78,3.43525851]
[1769475873809,3.46443087,123.84,123.79,3.43525851]
[1769475876505,316.10045109,123.86,123.79,3.43525851]
[1769475876506,5.85892294,123.86,123.79,9.67219207]
[1769475876707,3.46443087,123.86,123.81,3.43525851]
[1769475881825,3.46443087,123.88,123.82,3.43525851]
[1769475882117,3.46443087,123.88,123.83,3.43525851]
[1769475882918,3.46443087,123.88,123.83,10.71085851]
[1769475888624,5.85892294,123.88,123.83,10.71085851]
[1769475890225,3.46443087,123.88,123.83,10.71085851]
[1769475894629,323.66029297,123.9,123.85,3.53645188]
[1769475894828,320.1606306,123.9,123.85,3.53645188]
[1769475895023,2.39449207,123.89,123.85,3.53645188]
[1769475895718,2.39149027,123.89,123.85,3.53645188]
[1769475895928,5.89115264,123.87,123.8,3.53645188]
[1769475896732,5.89115264,123.87,123.81,3.53645188]
[1769475897032,5.89115264,123.87,123.82,3.53645188]
[1769475897421,321.2658009,123.9,123.84,3.53645188]
[1769475897621,2.39149027,123.88,123.84,3.53645188]
[1769475898032,5.89115264,123.88,123.84,3.53645188]
[1769475899335,3.49966237,123.88,123.84,3.53645188]
[1769475899535,2.39149027,123.89,123.84,3.53645188]
[1769475901036,323.65729117,123.9,123.84,3.53645188]
[1769475903235,2.39149027,123.89,123.84,3.53645188]
[1769475906645,5.89115264,123.89,123.84,3.53645188]
[1769475906846,2.39149027,123.88,123.84,3.53645188]
[1769475909447,5.89115264,123.89,123.84,3.53645188]
[1769475912848,2.39149027,123.88,123.84,3.53645188]
[1769475918452,5.89115264,123.86,123.81,10.81265188]
[1769475918648,5.89115264,123.86,123.82,3.20990775]
[1769475918847,3.49966237,123.86,123.82,3.20990775]
[1769475920250,2.39149027,123.87,123.82,3.20990775]
[1769475924960,5.93606171,123.88,123.82,3.20990775]
[1769475925752,3.54457144,123.88,123.83,3.3699763]
[1769475927461,5.93606171,123.88,123.83,3.3699763]
[1769475928862,5.93606171,123.88,123.83,10.6455763]
[1769475930961,5.93606171,123.88,123.84,3.3699763]
[1769475931163,2.39149027,123.89,123.84,10.6449763]
[1769475931562,5.93606171,123.89,123.84,10.6449763]
[1769475932161,2.39149027,123.88,123.84,3.3699763]
[1769475934270,5.93606171,123.88,123.84,3.3699763]
[1769475935470,5.93606171,123.88,123.82,3.3699763]
[1769475935668,2.39149027,123.87,123.82,3.3699763]
[1769475940074,5.93606171,123.87,123.82,3.3699763]
[1769475941578,5.93606171,123.86,123.81,322.3]
[1769475942174,5.93606171,123.86,123.81,325.6699763]
[1769475949284,5.93606171,123.86,123.82,3.55933445]
[1769475949679,3.54457144,123.86,123.82,3.55933445]
[1769475953579,3.41699269,123.82,123.74,15.10216102]
[1769475953782,5.80848296,123.82,123.75,2.39149027]
[1769475954879,5.80848296,123.82,123.75,9.67169027]
[1769475955482,5.80848296,123.82,123.76,3.55933445]
[1769475955886,2.39149027,123.81,123.76,3.55933445]
[1769475957584,2.39452918,123.81,123.76,3.55933445]
[1769475960485,5.81152187,123.8,123.74,325.93933445]
[1769475960689,5.81152187,123.79,123.74,3.55933445]
[1769475962090,3.41699269,123.79,123.74,3.55933445]
[1769475966194,3.41699269,123.79,123.74,5.95386363]
[1769475968101,3.41699269,123.79,123.74,3.55933445]
[1769475968294,5.81152187,123.79,123.73,3.55933445]
[1769475971310,3.41699269,123.79,123.73,3.55933445]
[1769475971510,3.41699269,123.79,123.73,5.95386363]
[1769475972713,3.41699269,123.79,123.73,3.55933445]
[1769475972913,5.81152187,123.79,123.73,3.55933445]
[1769475973214,3.41699269,123.79,123.73,5.95386363]
[1769475977119,3.41699269,123.79,123.74,3.55933445]
[1769475977120,3.41699269,123.78,123.74,3.55933445]
[1769475980623,3.41699269,123.78,123.74,5.95386363]
[1769475982822,7.2784,123.79,123.75,3.21418508]
[1769475983622,7.2784,123.79,123.75,5.60871426]
[1769475984727,7.2784,123.79,123.75,3.21418508]
[1769475984925,10.50025741,123.79,123.74,2.39452918]
[1769475985126,3.22185741,123.78,123.73,5.60871426]
[1769475986727,3.22185741,123.78,123.73,3.21418508]
[1769475989631,3.22185741,123.77,123.73,3.21418508]
[1769475990726,3.22185741,123.77,123.71,9.67722918]
[1769475991030,3.22185741,123.77,123.71,12.89141426]
[1769475991228,3.22185741,123.77,123.72,3.21418508]
[1769475994435,10.50105741,123.77,123.72,3.21418508]
[1769475995934,10.50105741,123.77,123.72,5.60871426]
[1769475997630,3.22185741,123.79,123.74,5.60871426]
[1769475997838,3.22185741,123.81,123.76,5.60871426]
[1769475998741,3.22185741,123.81,123.76,3.21418508]
[1769475998934,10.49865741,123.81,123.76,3.21418508]
[1769475999938,10.49865741,123.81,123.76,5.60871426]
[1769476001135,3.22185741,123.8,123.74,10.49498508]
[1769476001329,3.22185741,123.8,123.74,12.88951426]
[1769476004341,3.22185741,123.8,123.75,3.21418508]
[1769476006842,10.49925741,123.8,123.75,3.21418508]
[1769476007041,5.61638659,123.78,123.73,3.21418508]
[1769476007340,3.22185741,123.77,123.71,5.60871426]
[1769476007937,10.50105741,123.77,123.71,5.60871426]
[1769476008334,10.50105741,123.77,123.71,3.21418508]
[1769476010941,12.89558659,123.77,123.71,3.21418508]
[1769476014244,10.50105741,123.77,123.71,3.21418508]
[1769476019353,3.33625076,123.76,123.71,3.21418508]
[1769476020952,5.73268964,123.78,123.72,3.24299931]
[1769476021146,3.33625076,123.78,123.72,3.24299931]
[1769476021453,3.33625076,123.78,123.72,5.63943819]
[1769476022955,3.33625076,123.78,123.72,3.24299931]
[1769476026561,3.33625076,123.78,123.73,5.63943819]
[1769476027365,3.33625076,123.78,123.73,3.24299931]
[1769476030563,3.33625076,123.77,123.72,7.282]
[1769476031471,3.33625076,123.77,123.72,10.52499931]
[1769476037975,3.33625076,123.77,123.72,12.92143819]
[1769476041579,3.23820491,123.79,123.74,3.22640684]
[1769476041979,3.23820491,123.79,123.74,5.62284572]
[1769476042978,3.23820491,123.79,123.74,12.90354572]
[1769476057192,2.39643888,123.81,123.75,3.22640684]
[1769476057395,5.63464379,123.81,123.75,3.22640684]
[1769476057593,3.23820491,123.81,123.75,3.22640684]
[1769476057991,3.23820491,123.81,123.75,5.62284572]
[1769476058192,3.23820491,123.81,123.75,3.22640684]
[1769476059191,3.23820491,123.83,123.79,2.39643888]
[1769476059492,3.23820491,123.83,123.78,5.62284572]
[1769476059693,3.23820491,123.83,123.78,3.22640684]
[1769476060391,3.23820491,123.82,123.76,12.90234572]
[1769476062393,3.23820491,123.82,123.77,3.22640684]
[1769476066098,3.23820491,123.82,123.77,5.62284572]
[1769476072397,3.23820491,123.82,123.78,2.39643888]
[1769476081715,3.23820491,123.82,123.78,2.39357246]
[1769476084919,3.23820491,123.82,123.77,5.6199793]
[1769476114932,3.23820491,123.82,123.78,2.39357246]
[1769476117532,3.28201326,123.83,123.76,3.3702711]
[1769476117727,3.28201326,123.81,123.75,3.3702711]
[1769476117932,3.28201326,123.84,123.77,3.3702711]
[1769476122733,3.28201326,123.84,123.79,3.3702711]
[1769476123327,3.28201326,123.84,123.8,2.39357246]
[1769476123530,3.28201326,123.86,123.82,5.76384356]
[1769476123734,3.28201326,123.88,123.82,5.76384356]
[1769476125936,3.28201326,123.87,123.82,3.3702711]
[1769476134043,3.50971567,123.85,123.8,3.44595921]
[1769476134339,5.90328813,123.85,123.8,3.44595921]
[1769476137044,3.50971567,123.85,123.78,5.83953167]
[1769476137344,3.50971567,123.84,123.78,325.82595921]
[1769476137743,3.50971567,123.84,123.79,3.44595921]
[1769476139446,9.66767246,123.86,123.8,3.44595921]
[1769476139744,3.50971567,123.85,123.8,3.44595921]
[1769476139954,3.50971567,123.84,123.78,328.21953167]
[1769476140146,5.90328813,123.84,123.78,325.82595921]
[1769476142446,3.50971567,123.84,123.79,3.44595921]
[1769476156061,5.90284359,123.85,123.79,3.44595921]
[1769476156262,3.50971567,123.85,123.79,5.83908713]
[1769476156461,3.50971567,123.85,123.8,3.44595921]
[1769476157663,3.50971567,123.85,123.8,5.83908713]
[1769476158258,7.2741,123.86,123.81,5.83908713]
[1769476158462,10.78381567,123.86,123.81,5.83908713]
[1769476158664,3.50971567,123.85,123.8,2.39312792]
[1769476158864,3.50971567,123.85,123.79,328.23908713]
[1769476161165,10.78421567,123.85,123.79,328.23908713]
[1769476161362,10.78421567,123.85,123.8,3.35154119]
[1769476162062,3.50971567,123.85,123.8,3.35154119]
[1769476165667,10.57524066,123.87,123.8,3.35154119]
[1769476166269,3.30174066,123.87,123.82,3.35154119]
[1769476167975,3.30174066,123.87,123.82,5.74466911]
[1769476173081,3.30174066,123.87,123.82,3.35154119]
[1769476180074,5.69486858,123.87,123.82,3.35154119]
[1769476181086,3.30174066,123.86,123.81,7.2767]
[1769476181286,3.30174066,123.86,123.81,10.62824119]
[1769476186088,3.30174066,123.86,123.82,3.35154119]
[1769476189889,3.53616061,123.88,123.83,5.93254241]
[1769476190090,3.53616061,123.88,123.84,3.53941449]
[1769476197500,320.79909991,123.9,123.85,3.53941449]
[1769476197694,313.52759991,123.9,123.85,3.53941449]
[1769476198199,313.52759991,123.9,123.85,10.81381449]
[1769476198894,3.53616061,123.89,123.83,7.2751]
[1769476199097,5.92928853,123.89,123.83,10.81451449]
[1769476199298,5.92928853,123.89,123.84,3.53941449]
[1769476200397,3.53616061,123.89,123.84,10.81431449]
[1769476200596,309.9914393,123.9,123.84,5.93254241]
[1769476200795,309.9914393,123.9,123.85,3.53941449]
[1769476201596,309.9914393,123.9,123.85,5.93254241]
[1769476202100,3.53616061,123.91,123.86,3.53941449]
[1769476202603,5.92928853,123.91,123.86,3.53941449]
[1769476203701,5.92681125,123.91,123.86,3.53941449]
[1769476203903,3.53616061,123.91,123.86,10.81311449]
[1769476207003,3.53616061,123.91,123.87,3.53941449]
[1769476207904,5.92681125,123.93,123.88,3.53941449]
[1769476208206,3.53616061,123.93,123.88,3.53941449]
[1769476208900,5.92681125,123.95,123.89,3.53941449]
[1769476209205,3.53616061,123.97,123.91,5.93006513]
[1769476209408,3.53616061,123.97,123.92,3.53941449]
[1769476210306,5.92681125,123.97,123.92,3.53941449]
[1769476212310,3.53616061,123.97,123.92,3.53941449]
[1769476212705,3.53616061,123.97,123.93,3.53941449]
[1769476212903,13.19331125,123.99,123.93,3.53941449]
[1769476213506,3.53616061,123.98,123.93,3.53941449]
[1769476215810,5.92681125,123.98,123.93,3.53941449]
[1769476217613,5.92681125,123.97,123.91,3.53941449]
[1769476224021,5.92681125,123.97,123.91,10.81021449]
[1769476224520,3.27329371,123.96,123.91,10.81021449]
[1769476231836,2.39065064,123.97,123.92,3.24026378]
[1769476232028,5.66394435,123.98,123.92,3.24026378]
[1769476232533,3.27329371,123.97,123.92,3.24026378]
[1769476232737,3.27329371,123.97,123.92,10.51056378]
[1769476232929,3.27329371,123.97,123.92,12.90121442]
[1769476233927,3.27329371,123.99,123.93,12.90061442]
[1769476234636,3.27329371,123.99,123.93,10.50996378]
[1769476235229,3.27329371,123.98,123.93,10.50996378]
[1769476243035,3.27329371,123.98,123.93,3.24026378]
[1769476243235,5.66394435,123.95,123.88,113.1269]
[1769476243437,3.27329371,123.95,123.89,2.39065064]
[1769476244938,3.27329371,123.95,123.9,7.2714]
[1769476247438,3.27329371,123.95,123.9,9.9502122]
[1769476251039,3.27329371,123.95,123.9,2.6788122]
[1769476251841,5.66394435,123.95,123.9,2.6788122]
[1769476255136,3.27329371,123.95,123.9,2.6788122]
[1769476258149,3.27329371,123.95,123.91,2.68526252]
[1769476261954,3.27329371,123.95,123.89,5.07591316]
[1769476262455,3.29493315,123.94,123.89,12.34791316]
[1769476262643,3.29493315,123.92,123.87,2.68526252]
[1769476263554,3.29493315,123.91,123.85,5.07591316]
[1769476263853,3.29493315,123.91,123.86,2.68526252]
[1769476264957,3.29493315,123.91,123.86,9.95906252]
[1769476268648,3.29493315,123.91,123.86,2.68526252]
[1769476270751,3.29493315,123.91,123.86,5.07568109]
[1769476273457,3.29493315,123.91,123.87,2.68526252]
[1769476275965,3.29493315,123.93,123.88,2.68526252]
[1769476276167,3.29493315,123.93,123.88,5.07568109]
[1769476278466,3.29493315,123.93,123.89,2.68526252]
[1769476285258,3.29493315,123.93,123.88,9.66301857]
[1769476285461,3.29493315,123.93,123.88,12.3438122]
[1769476287865,3.44227088,123.92,123.86,12.3448122]
[1769476288066,3.44227088,123.92,123.86,2.68079363]
[1769476288870,10.71267088,123.92,123.86,2.68079363]
[1769476289263,10.71267088,123.92,123.86,5.0712122]
[1769476290966,3.44227088,123.91,123.86,5.0712122]
[1769476291569,3.44227088,123.91,123.86,2.68079363]
[1769476295668,3.44227088,123.91,123.85,9.66451857]
[1769476296169,3.44227088,123.9,123.84,5.0712122]
[1769476296371,3.44227088,123.9,123.84,2.68079363]
[1769476297971,5.83268945,123.9,123.84,2.68079363]
[1769476298376,3.44227088,123.9,123.84,5.0712122]
[1769476298977,3.44227088,123.9,123.85,2.68079363]
[1769476299175,3.44227088,123.9,123.85,5.0712122]
[1769476299475,2.39041857,123.86,123.81,2.68079363]
[1769476299672,5.83268945,123.86,123.81,2.68079363]
[1769476300773,3.44227088,123.86,123.81,2.68079363]
[1769476302973,3.44227088,123.85,123.79,12.3490122]
[1769476303173,5.83268945,123.85,123.79,9.95859363]
[1769476305881,3.44227088,123.84,123.79,9.95859363]
[1769476307179,3.44227088,123.84,123.79,2.68079363]
[1769476309180,10.50881656,123.86,123.8,2.69085829]
[1769476309385,10.50881656,123.86,123.8,5.08127686]
[1769476313389,10.50881656,123.86,123.81,2.39041857]
[1769476313886,10.50881656,123.86,123.81,5.08127686]
[1769476315189,3.23481656,123.86,123.81,5.08127686]
[1769476316895,3.23481656,123.86,123.81,2.69085829]
[1769476317096,3.23481656,123.86,123.81,5.08127686]
[1769476318192,9.66341857,123.88,123.81,5.08127686]
[1769476318193,10.50781656,123.88,123.82,5.08127686]
[1769476318497,10.50781656,123.88,123.83,2.39041857]
[1769476319792,10.50781656,123.88,123.82,5.08127686]
[1769476322296,3.23481656,123.87,123.82,2.69085829]
[1769476329613,5.62690107,123.87,123.82,2.69085829]
[1769476331916,3.23481656,123.87,123.82,2.69085829]
[1769476340920,3.40400116,123.86,123.81,7.2767]
[1769476342318,3.40400116,123.86,123.81,9.96066277]
[1769476344727,3.40400116,123.86,123.81,2.68396277]
[1769476344926,3.40400116,123.85,123.8,7.2771]
[1769476345127,3.40400116,123.85,123.8,9.96106277]
[1769476348430,3.40400116,123.85,123.8,12.35314728]
[1769476353033,3.40400116,123.85,123.8,9.96106277]
[1769476353333,3.40400116,123.85,123.8,12.35314728]
[1769476361533,3.40400116,123.85,123.81,2.68396277]
[1769476362837,2.39208451,123.88,123.81,12.35264728]
[1769476363041,3.40400116,123.87,123.81,12.35264728]
[1769476365442,10.67730116,123.87,123.81,12.35264728]
[1769476365641,3.40400116,123.86,123.81,12.35264728]
[1769476371744,3.40400116,123.86,123.81,9.96056277]
[1769476378553,3.40400116,123.86,123.81,2.68396277]
[1769476379651,3.55485813,123.85,123.79,5.07628598]
[1769476379849,3.55485813,123.84,123.79,2.68420147]
[1769476381558,3.55485813,123.83,123.77,2.68420147]
[1769476381950,5.94694264,123.83,123.77,2.68420147]
[1769476382149,3.55485813,123.83,123.78,2.68420147]
[1769476383759,3.55485813,123.83,123.78,5.07628598]
[1769476385559,3.55485813,123.83,123.78,5.07762353]
[1769476388061,3.55485813,123.83,123.78,2.68420147]
[1769476389361,3.55485813,123.85,123.79,2.68420147]
[1769476389666,3.55485813,123.85,123.8,5.07762353]
[1769476393367,3.55485813,123.87,123.81,5.07762353]
[1769476402972,3.55485813,123.87,123.81,2.68420147]
[1769476403175,5.94828019,123.87,123.81,2.68420147]
[1769476403478,3.3882023,123.86,123.81,2.68420147]
[1769476410181,5.78162436,123.86,123.81,2.68420147]
[1769476410679,3.3882023,123.85,123.81,2.68420147]
[1769476418181,3.3882023,123.85,123.8,7.2773]
[1769476418381,5.78162436,123.84,123.79,2.68351035]
[1769476423185,3.3882023,123.84,123.79,2.68351035]
[1769476423489,5.78162436,123.86,123.8,2.68351035]
[1769476423691,3.3882023,123.85,123.8,2.68351035]
[1769476426292,3.3882023,123.85,123.8,9.96081035]
[1769476426492,3.3882023,123.85,123.8,12.35423241]
[1769476431800,3.3882023,123.85,123.81,2.68969294]
[1769476431990,5.84221358,123.87,123.81,2.68969294]
[1769476433703,5.84221358,123.87,123.81,5.083115]
[1769476433994,5.84221358,123.87,123.81,2.68969294]
[1769476438898,3.44879152,123.87,123.81,5.083115]
[1769476441797,5.84221358,123.87,123.81,5.083115]
[1769476442596,3.44879152,123.86,123.81,5.083115]
[1769476443196,3.44879152,123.88,123.83,2.39342206]
[1769476447605,3.44879152,123.88,123.82,12.35737369]
[1769476450198,3.44879152,123.87,123.82,9.96579294]
[1769476451101,3.44879152,123.87,123.82,12.35737369]
[1769476453201,2.39158075,123.88,123.83,2.68969294]
[1769476453405,3.44879152,123.89,123.83,12.35687369]
[1769476454096,3.44879152,123.89,123.85,2.68969294]
[1769476454698,3.44879152,123.89,123.85,5.08127369]
[1769476454895,9.66228075,123.92,123.86,2.39158075]
[1769476454896,3.44879152,123.91,123.86,2.39158075]
[1769476455104,3.44879152,123.91,123.86,5.08127369]
[1769476455299,3.44879152,123.95,123.9,2.39158075]
[1769476455505,3.44879152,123.95,123.91,2.39158075]
[1769476455698,3.44879152,123.95,123.92,2.39158075]
[1769476455898,3.44879152,123.97,123.92,2.39158075]
[1769476456603,3.44879152,123.97,123.93,2.39158075]
[1769476458208,3.44879152,123.97,123.92,5.08127369]
[1769476458604,3.44879152,123.97,123.93,2.39158075]
[1769476459206,3.44879152,123.97,123.92,5.08127369]
[1769476459401,12.11309524,124.02,123.95,2.67966701]
[1769476459610,3.44436354,124.01,123.95,5.07124776]
[1769476459910,3.44436354,124.01,123.96,2.39158075]
[1769476461006,3.46654701,124.03,123.98,2.39158075]
[1769476461812,3.46654701,124.06,123.99,2.39158075]
[1769476462111,3.46654701,124.05,123.99,5.07497347]
[1769476462312,3.46654701,124.05,123.99,2.39158075]
[1769476462509,3.46654701,124.05,123.98,2.39158075]
[1769476462908,5.85812776,124.05,123.98,2.39158075]
[1769476463210,3.46654701,124.04,123.98,2.39158075]
[1769476463812,3.46654701,124.04,123.97,9.95049272]
[1769476464012,3.46654701,124.04,123.98,2.39158075]
[1769476464410,3.46654701,124.04,123.97,2.68339272]
[1769476464604,3.46654701,124.04,123.98,2.39158075]
[1769476465112,3.46654701,124.04,123.98,5.07497347]
[1769476465706,3.46654701,124.04,123.99,2.39158075]
[1769476469510,3.46654701,124.04,123.99,5.07497347]
[1769476470618,5.85812776,124.04,123.97,2.68339272]